bitfinex/quotes_SOLUSD_20260115
["timestamp","ask_amount","ask_price","bid_price","bid_amount"]
[1768436673346,2.12018674,145.82,145.78,0.65560606]
[1768436673748,0.52953264,145.81,145.78,0.65560606]
[1768436674054,0.10330533,145.8,145.76,0.65560606]
[1768436676336,0.53388146,145.81,145.77,0.65560606]
[1768436677763,2.5550682,145.81,145.77,0.65560606]
[1768436679149,0.099,145.8,145.77,0.65560606]
[1768436680153,0.53388146,145.81,145.77,0.65560606]
[1768436680759,2.5550682,145.81,145.77,0.65560606]
[1768436681068,0.53388146,145.81,145.77,0.65560606]
[1768436681361,2.5550682,145.81,145.77,0.65560606]
[1768436681865,0.53388146,145.81,145.77,0.65560606]
[1768436682066,2.5550682,145.81,145.77,0.65560606]
[1768436682949,0.53388146,145.81,145.77,0.65560606]
[1768436683261,2.02118674,145.82,145.77,0.65560606]
[1768436683552,2.5550682,145.83,145.77,0.65560606]
[1768436684036,0.099,145.82,145.77,0.65560606]
[1768436684235,2.12018674,145.82,145.77,0.65560606]
[1768436684645,0.099,145.82,145.77,0.65560606]
[1768436686545,0.53388146,145.83,145.77,0.65560606]
[1768436686763,2.02118674,145.84,145.78,0.65560606]
[1768436686764,2.5550682,145.84,145.78,0.65560606]
[1768436687351,0.099,145.83,145.78,0.65560606]
[1768436688241,2.12018674,145.83,145.78,0.65560606]
[1768436689665,0.099,145.83,145.78,0.65560606]
[1768436691174,0.099,145.83,145.79,0.66834225]
[1768436691373,2.5550682,145.84,145.79,0.66834225]
[1768436693379,0.53388146,145.84,145.79,0.66834225]
[1768436693569,2.5550682,145.84,145.79,0.66834225]
[1768436693882,2.12018674,145.83,145.79,0.66834225]
[1768436695074,0.099,145.83,145.79,0.66834225]
[1768436695374,2.5550682,145.84,145.79,0.66834225]
[1768436695881,0.53388146,145.86,145.82,0.66834225]
[1768436696178,0.099,145.87,145.82,0.66834225]
[1768436696363,0.099,145.87,145.82,2.68952899]
[1768436696567,0.099,145.87,145.83,0.66834225]
[1768436697063,0.53388146,145.88,145.83,0.66834225]
[1768436697264,2.5550682,145.88,145.83,0.66834225]
[1768436697465,0.2,145.92,145.88,0.66834225]
[1768436697657,0.299,145.92,145.88,0.66834225]
[1768436698268,0.299,145.92,145.87,0.66834225]
[1768436698269,0.52953264,145.91,145.87,0.66834225]
[1768436699961,0.10330533,145.9,145.86,13.14834225]
[1768436700161,0.10330533,145.9,145.86,0.66834225]
[1768436701079,0.10330533,145.9,145.82,5.34408856]
[1768436701080,0.52109291,145.87,145.83,0.66834225]
[1768436702083,0.53388146,145.9,145.84,0.66834225]
[1768436702280,0.099,145.89,145.84,0.66834225]
[1768436702482,2.12018674,145.89,145.84,0.66834225]
[1768436702683,0.52953264,145.88,145.84,0.66834225]
[1768436704392,0.52953264,145.88,145.81,0.66834225]
[1768436704590,0.52527036,145.84,145.8,0.66834225]
[1768436704894,3.15417452,145.84,145.8,0.66834225]
[1768436705396,3.68805598,145.85,145.8,0.66834225]
[1768436705571,0.53388146,145.85,145.8,0.66834225]
[1768436705771,3.68805598,145.85,145.8,0.66834225]
[1768436706697,0.53388146,145.85,145.8,0.66834225]
[1768436706870,0.53388146,145.85,145.81,0.66834225]
[1768436707191,3.68805598,145.85,145.81,0.66834225]
[1768436708688,0.53388146,145.86,145.81,0.66834225]
[1768436708872,3.68805598,145.86,145.81,0.66834225]
[1768436709286,0.53388146,145.86,145.81,0.66834225]
[1768436709790,3.68805598,145.86,145.81,0.66834225]
[1768436709978,0.53388146,145.86,145.81,0.66834225]
[1768436710187,3.68805598,145.86,145.81,0.66834225]
[1768436711171,3.15417452,145.85,145.81,0.66834225]
[1768436712194,3.68805598,145.86,145.81,0.66834225]
[1768436712382,0.099,145.85,145.81,0.66834225]
[1768436717398,3.15417452,145.86,145.81,0.66834225]
[1768436717602,0.099,145.9,145.85,0.66834225]
[1768436717802,0.52953264,145.89,145.85,0.66834225]
[1768436718104,0.10330533,145.88,145.85,0.66834225]
[1768436719402,0.10330533,145.88,145.84,0.66834225]
[1768436721083,0.53388146,145.91,145.85,0.70429403]
[1768436721288,3.25317452,145.89,145.85,0.70429403]
[1768436721796,0.52953264,145.88,145.85,0.70429403]
[1768436724612,0.52953264,145.88,145.84,0.71516101]
[1768436725498,0.10330533,145.87,145.82,3.86933553]
[1768436725903,0.10330533,145.87,145.83,0.71516101]
[1768436728710,3.25747985,145.87,145.83,0.71516101]
[1768436728918,0.52527036,145.86,145.83,0.71516101]
[1768436729093,0.52527036,145.86,145.82,0.71516101]
[1768436729294,0.10752498,145.85,145.8,13.17516101]
[1768436729495,0.10752498,145.85,145.81,0.71516101]
[1768436731423,3.2616995,145.85,145.81,0.71516101]
[1768436731922,0.52109291,145.84,145.81,0.71516101]
[1768436732592,0.53388146,145.85,145.81,0.71516101]
[1768436732794,3.68805598,145.85,145.81,0.71516101]
[1768436733220,0.53388146,145.85,145.81,0.71516101]
[1768436737443,0.52527036,145.81,145.77,0.71516101]
[1768436737741,3.68805598,145.82,145.77,0.71516101]
[1768436738233,0.53388146,145.82,145.78,0.71516101]
[1768436738445,3.68805598,145.83,145.78,0.71516101]
[1768436738642,0.099,145.82,145.78,0.71516101]
[1768436740611,3.25317452,145.82,145.78,0.71516101]
[1768436741330,0.099,145.82,145.78,0.71516101]
[1768436741536,3.25317452,145.82,145.78,0.71516101]
[1768436741829,0.099,145.82,145.78,0.71516101]
[1768436749340,0.52953264,145.81,145.78,0.71516101]
[1768436753334,0.52953264,145.81,145.77,0.71336269]
[1768436753649,0.10330533,145.8,145.77,0.71336269]
[1768436753845,0.52527036,145.79,145.76,0.71336269]
[1768436755525,3.68805598,145.8,145.76,0.71336269]
[1768436757649,0.099,145.79,145.76,0.71336269]
[1768436758551,0.099,145.79,145.75,0.71336269]
[1768436759741,3.68805598,145.8,145.75,0.71336269]
[1768436760640,0.099,145.79,145.75,0.71336269]
[1768436762330,0.53388146,145.8,145.75,0.71336269]
[1768436762652,3.68805598,145.8,145.75,0.71336269]
[1768436764158,0.099,145.79,145.75,0.71336269]
[1768436780471,0.53388146,145.8,145.76,0.71607712]
[1768436780675,0.53388146,145.81,145.77,0.71607712]
[1768436780977,0.53388146,145.81,145.78,0.71607712]
[1768436781273,0.53388146,145.83,145.78,0.71607712]
[1768436781453,0.53388146,145.83,145.79,0.71607712]
[1768436781779,6.85650207,145.85,145.8,0.71607712]
[1768436781780,0.53388146,145.85,145.8,0.71607712]
[1768436783356,0.099,145.84,145.8,0.71607712]
[1768436784274,0.52953264,145.83,145.79,0.67998563]
[1768436784452,0.52527036,145.81,145.77,0.67998563]
[1768436785772,0.53388146,145.82,145.77,0.67998563]
[1768436786075,0.53388146,145.82,145.78,0.67998563]
[1768436788173,0.53388146,145.83,145.79,0.67998563]
[1768436788757,2.55518911,145.85,145.8,0.67998563]
[1768436789080,2.55518911,145.85,145.81,0.67998563]
[1768436789286,2.02130765,145.84,145.8,0.67998563]
[1768436789460,24.50345976,145.88,145.78,2.02130765]
[1768436789461,0.10330533,145.82,145.79,0.67998563]
[1768436790564,2.12461298,145.82,145.78,0.67998563]
[1768436790877,0.10752498,145.8,145.76,0.67998563]
[1768436793475,0.53388146,145.81,145.77,0.67998563]
[1768436798673,0.53388146,145.81,145.78,0.67998563]
[1768436803978,2.02130765,145.82,145.78,0.67998563]
[1768436804386,2.12030765,145.82,145.78,0.67998563]
[1768436806392,2.02130765,145.82,145.78,0.67998563]
[1768436807194,2.55084029,145.82,145.78,0.67998563]
[1768436809599,0.10330533,145.81,145.78,0.67998563]
[1768436817893,2.55518911,145.83,145.78,0.67998563]
[1768436818091,0.099,145.82,145.78,0.67998563]
[1768436821209,2.12030765,145.82,145.78,0.67998563]
[1768436822106,0.099,145.82,145.78,0.67998563]
[1768436822315,2.12030765,145.82,145.78,0.67998563]
[1768436822485,2.12030765,145.82,145.78,0.17998563]
[1768436823218,0.68808307,145.79,145.74,9.50624131]
[1768436823387,0.65808308,145.79,145.75,0.67355076]
[1768436823728,0.62808309,145.79,145.76,0.67355076]
[1768436824007,6.85748578,145.83,145.76,0.67355076]
[1768436824210,2.02130765,145.82,145.77,0.67355076]
[1768436824411,2.02130765,145.83,145.78,0.67355076]
[1768436825604,0.6906006,145.82,145.78,0.67355076]
[1768436827811,3.84753967,145.83,145.78,0.67355076]
[1768436828418,0.37944807,145.82,145.78,0.67355076]
[1768436830499,3.53638714,145.82,145.78,0.67355076]
[1768436831929,3.15693907,145.81,145.76,0.67355076]
[1768436832214,0.68443947,145.79,145.75,0.67355076]
[1768436834229,0.38554758,145.78,145.75,0.67355076]
[1768436835231,3.84753967,145.79,145.75,0.67355076]
[1768436835611,0.6906006,145.79,145.75,0.67355076]
[1768436838434,3.84753967,145.8,145.75,0.67355076]
[1768436838611,3.84753967,145.81,145.76,0.67355076]
[1768436839635,0.37944807,145.8,145.76,0.67355076]
[1768436842120,3.15693907,145.81,145.76,0.67355076]
[1768436842629,3.15693907,145.79,145.76,0.67355076]
[1768436842834,3.82332546,145.8,145.76,0.67355076]
[1768436843942,0.66638639,145.8,145.76,0.67355076]
[1768436844145,3.82332546,145.8,145.76,0.67355076]
[1768436845244,0.66638639,145.8,145.76,0.67355076]
[1768436845446,3.82332546,145.8,145.76,0.67355076]
[1768436847822,0.66638639,145.8,145.76,0.67355076]
[1768436848349,3.82332546,145.8,145.76,0.67355076]
[1768436848756,0.66638639,145.8,145.76,0.67355076]
[1768436850634,0.66375673,145.78,145.74,0.71707614]
[1768436853538,0.4060235,145.77,145.74,0.71707614]
[1768436853736,0.1845589,145.77,145.74,0.71707614]
[1768436854146,3.15693907,145.78,145.74,0.71707614]
[1768436856255,0.099,145.77,145.72,0.71707614]
[1768436856436,3.25593907,145.77,145.72,0.71707614]
[1768436857733,0.5631694,145.76,145.72,0.71707614]
[1768436858351,0.10364169,145.75,145.72,0.71707614]
[1768436864032,0.10364169,145.75,145.71,0.71707614]
[1768436864233,0.10364169,145.75,145.71,3.87401521]
[1768436864640,0.10364169,145.75,145.71,0.71707614]
[1768436865555,1.30958076,145.76,145.72,0.71707614]
[1768436865742,3.15693907,145.76,145.72,0.71707614]
[1768436867665,0.46421629,145.75,145.72,0.71707614]
[1768436877067,0.46421629,145.77,145.72,0.71707614]
[1768436877368,0.46421629,145.78,145.74,0.66884462]
[1768436882774,3.62115536,145.79,145.74,0.66884462]
[1768436883172,0.099,145.78,145.74,0.66884462]
[1768436891568,0.10261564,145.76,145.72,0.66884462]
[1768436891773,0.45698464,145.75,145.72,0.66884462]
[1768436896791,0.45347639,145.73,145.7,0.66884462]
[1768436898982,0.45347639,145.73,145.69,0.66884462]
[1768436901289,2.48575241,145.74,145.69,2.69038074]
[1768436901496,2.48575241,145.74,145.7,0.71811908]
[1768436901996,0.46421629,145.74,145.7,0.71811908]
[1768436904784,2.48575241,145.74,145.7,0.71811908]
[1768436904984,0.099,145.73,145.7,0.71811908]
[1768436910702,2.02153612,145.74,145.7,0.71811908]
[1768436911082,2.12053612,145.74,145.7,0.71811908]
[1768436912485,0.46056412,145.73,145.7,0.71811908]
[1768436914183,0.46056412,145.73,145.69,0.65454608]
[1768436915503,0.10261564,145.72,145.69,0.65454608]
[1768436917706,0.45698464,145.71,145.68,19.87740211]
[1768436917911,2.48575241,145.72,145.68,0.65454608]
[1768436918504,2.48575241,145.72,145.67,2.02153612]
[1768436918505,0.099,145.71,145.67,2.6760822]
[1768436918692,0.099,145.71,145.68,0.65454608]
[1768436920211,6.86204357,145.73,145.68,0.65454608]
[1768436920386,2.48575241,145.72,145.68,0.65454608]
[1768436921194,0.46421629,145.72,145.68,0.65454608]
[1768436922112,2.48575241,145.72,145.68,0.65454608]
[1768436922410,0.46421629,145.74,145.69,0.65454608]
[1768436922610,2.48575241,145.74,145.69,0.65454608]
[1768436923409,0.099,145.73,145.69,0.65454608]
[1768436923916,0.46056412,145.72,145.69,0.65454608]
[1768436929619,0.46056412,145.72,145.68,0.65454608]
[1768436937819,2.12053612,145.74,145.68,0.65454608]
[1768436938014,2.12053612,145.74,145.69,0.72014822]
[1768436938404,0.46056412,145.73,145.69,0.72014822]
[1768436939205,2.48210024,145.73,145.69,0.72014822]
[1768436939405,0.10261564,145.72,145.67,0.72014822]
[1768436939611,2.48575241,145.72,145.67,0.72014822]
[1768436939811,0.46421629,145.72,145.68,0.72014822]
[1768436940207,2.48575241,145.72,145.68,0.72014822]
[1768436940406,0.46056412,145.7,145.66,10.22638953]
[1768436940607,0.3927155,145.7,145.66,0.72014822]
[1768436940824,2.02153612,145.71,145.66,0.72014822]
[1768436942832,2.12053612,145.71,145.66,0.72014822]
[1768436943131,0.39339399,145.7,145.66,0.72014822]
[1768436944333,2.41790379,145.71,145.66,0.72014822]
[1768436944737,0.099,145.7,145.66,0.72014822]
[1768436945033,2.41790379,145.71,145.66,0.72014822]
[1768436948034,0.39636767,145.71,145.67,0.72014822]
[1768436948639,0.39636767,145.72,145.67,0.72014822]
[1768436948808,0.099,145.73,145.68,0.72014822]
[1768436949017,0.39339399,145.72,145.68,0.72014822]
[1768436951626,3.55439816,145.72,145.68,0.72014822]
[1768436957923,0.39339399,145.72,145.68,0.72014822]
[1768436958124,0.10194394,145.71,145.68,0.72014822]
[1768436960839,3.26294811,145.71,145.68,0.72014822]
[1768436962245,0.10482929,145.69,145.65,0.65611695]
[1768436962441,3.55737184,145.7,145.65,0.65611695]
[1768436966431,3.16100417,145.68,145.64,0.65611695]
[1768436968322,3.16100417,145.67,145.63,0.65611695]
[1768436968525,0.14528223,145.66,145.63,0.65611695]
[1768436969435,3.3062864,145.66,145.63,0.65611695]
[1768436969625,3.16100417,145.66,145.63,0.65611695]
[1768436969826,3.30582357,145.66,145.63,0.65611695]
[1768436971040,0.1448194,145.66,145.63,0.65611695]
[1768436971428,3.30582357,145.66,145.62,0.75611695]
[1768436971627,3.30536995,145.64,145.62,0.1]
[1768436973134,3.16100417,145.64,145.61,0.1]
[1768436973624,0.04528223,145.63,145.61,0.1]
[1768436974726,3.2062864,145.64,145.61,0.75611695]
[1768436975446,3.2062864,145.64,145.61,0.1]
[1768436976131,0.04528223,145.63,145.61,0.05471777]
[1768436976336,3.2062864,145.63,145.61,0.05471777]
[1768436977152,3.16100417,145.63,145.61,0.05471777]
[1768436979233,9.60998821,145.66,145.61,0.05471777]
[1768436979447,3.16100417,145.64,145.61,0.05471777]
[1768436980653,3.16100417,145.63,145.61,0.05471777]
[1768436983051,3.16100417,145.64,145.61,0.05471777]
[1768436984252,10.02647285,145.66,145.61,0.05471777]
[1768436984432,3.16100417,145.66,145.62,0.65611695]
[1768436986246,6.86401077,145.69,145.64,0.65611695]
[1768436986451,3.16100417,145.68,145.64,0.65611695]
[1768436990466,10.0249589,145.69,145.64,0.65611695]
[1768436991655,3.16100417,145.68,145.64,0.65611695]
[1768436992958,3.16100417,145.69,145.64,0.65611695]
[1768436993370,10.02503048,145.69,145.64,0.65611695]
[1768436994053,130.28191408,145.71,145.64,0.65611695]
[1768436994263,3.16100417,145.7,145.64,0.65611695]
[1768436996059,10.0244423,145.7,145.64,0.65611695]
[1768436996489,10.0244423,145.7,145.63,3.16100417]
[1768436996490,6.86211913,145.73,145.68,0.66124127]
[1768436996963,3.16100417,145.74,145.69,0.66124127]
[1768436997373,29.6733441,145.75,145.69,0.66124127]
[1768436997846,19.38107245,145.75,145.69,0.66124127]
[1768436998049,3.16100417,145.76,145.71,0.66124127]
[1768436998355,109.9605138,145.77,145.71,0.66124127]
[1768436998565,106.26100417,145.77,145.72,0.66124127]
[1768436999251,3.16100417,145.77,145.72,0.66124127]
[1768436999450,19.37969865,145.78,145.72,0.66124127]
[1768436999664,3.16100417,145.77,145.72,0.66124127]
[1768436999963,19.37969865,145.78,145.73,0.66124127]
[1768437000163,15.68100417,145.78,145.73,0.60124127]
[1768437000466,3.36100417,145.79,145.73,3.16100417]
[1768437000642,0.2,145.79,145.74,3.16100417]
[1768437001056,0.2,145.79,145.69,16.24618769]
[1768437001348,0.2,145.79,145.75,3.16100417]
[1768437002164,0.2,145.79,145.76,0.66124127]
[1768437006248,0.2,145.79,145.77,0.66124127]
[1768437008067,3.42100417,145.83,145.79,0.66124127]
[1768437008272,3.42100417,145.83,145.79,0.60124127]
[1768437008570,3.42100417,145.83,145.79,0.55627143]
[1768437010373,0.25886976,145.79,145.71,0.66124127]
[1768437010578,3.16100417,145.77,145.72,0.66124127]
[1768437010771,3.16100417,145.76,145.72,0.66124127]
[1768437010969,0.20458189,145.76,145.72,0.66124127]
[1768437011174,3.36558606,145.76,145.72,0.66124127]
[1768437011470,2.02257862,145.75,145.72,0.66124127]
[1768437012773,2.22716051,145.76,145.72,0.66124127]
[1768437013574,0.20458189,145.76,145.72,0.66124127]
[1768437013777,2.02257862,145.76,145.72,0.66124127]
[1768437014577,2.12157862,145.76,145.72,0.66124127]
[1768437014977,0.099,145.76,145.72,0.66124127]
[1768437015183,2.12157862,145.76,145.72,0.66124127]
[1768437016087,0.36496984,145.77,145.72,0.66124127]
[1768437016290,2.02257862,145.76,145.72,0.66124127]
[1768437017288,7.2252368,145.77,145.72,0.66124127]
[1768437017587,2.02257862,145.76,145.72,0.66124127]
[1768437018164,7.2252368,145.77,145.72,0.66124127]
[1768437018364,2.02257862,145.75,145.72,0.66124127]
[1768437018565,0.099,145.76,145.72,0.66124127]
[1768437018765,2.02257862,145.75,145.72,0.66124127]
[1768437019072,6.86026696,145.77,145.73,0.66124127]
[1768437019073,0.099,145.77,145.73,0.66124127]
[1768437019587,2.12157862,145.77,145.73,0.66124127]
[1768437020266,2.02257862,145.77,145.73,0.66124127]
[1768437020582,2.02257862,145.78,145.73,0.66124127]
[1768437021582,2.02257862,145.77,145.73,0.66124127]
[1768437022798,2.02257862,145.78,145.73,0.66124127]
[1768437022983,2.02257862,145.79,145.73,2.68381989]
[1768437023296,2.02257862,145.79,145.74,2.68629829]
[1768437023470,2.02257862,145.79,145.75,0.66371967]
[1768437024602,2.38488876,145.79,145.75,0.66371967]
[1768437025503,2.38228199,145.77,145.73,0.66371967]
[1768437026797,7.22429746,145.79,145.73,0.66371967]
[1768437027095,2.38754846,145.79,145.74,0.66371967]
[1768437029194,2.12157862,145.78,145.74,0.66371967]
[1768437029689,2.02257862,145.76,145.73,0.66371967]
[1768437029888,2.38488876,145.77,145.73,0.66371967]
[1768437030671,0.36231014,145.77,145.73,0.66371967]
[1768437030895,2.38488876,145.77,145.73,0.66371967]
[1768437032509,7.22243421,145.77,145.73,0.66371967]
[1768437032677,9.24501283,145.77,145.73,0.66371967]
[1768437034693,2.38488876,145.77,145.73,0.66371967]
[1768437036102,0.36231014,145.77,145.73,0.66371967]
[1768437036399,2.38488876,145.77,145.73,0.66371967]
[1768437037284,0.36231014,145.77,145.73,0.66371967]
[1768437037484,2.38488876,145.77,145.73,0.66371967]
[1768437041404,0.36231014,145.77,145.73,0.66371967]
[1768437042703,2.38488876,145.77,145.73,0.66371967]
[1768437042886,2.02257862,145.76,145.73,0.66371967]
[1768437043088,9.24513435,145.77,145.73,0.66371967]
[1768437043509,2.38488876,145.77,145.73,0.66371967]
[1768437055092,0.1016331,145.76,145.73,0.66371967]
[1768437060910,2.12421172,145.76,145.73,0.66371967]
[1768437061937,2.02257862,145.75,145.73,0.66371967]
[1768437062444,0.36496984,145.77,145.73,0.66371967]
[1768437062611,2.38754846,145.77,145.73,0.66371967]
[1768437063930,2.02257862,145.76,145.73,0.66371967]
[1768437065509,2.12157862,145.76,145.73,0.66371967]
[1768437065716,2.02257862,145.75,145.72,0.66464003]
[1768437067933,2.02257862,145.76,145.68,12.48]
[1768437068142,2.02257862,145.76,145.69,2.02257862]
[1768437068339,2.02257862,145.76,145.7,2.02257862]
[1768437068541,2.02257862,145.76,145.71,0.66464003]
[1768437068915,2.74516829,145.76,145.71,0.66464003]
[1768437072036,2.74516829,145.75,145.71,0.66464003]
[1768437072340,0.72258967,145.79,145.71,2.02257862]
[1768437072526,0.72258967,145.8,145.74,2.02257862]
[1768437072930,0.72258967,145.8,145.75,0.36003016]
[1768437073416,3.88062115,145.8,145.75,0.36003016]
[1768437074144,0.72258967,145.79,145.75,0.36003016]
[1768437074345,0.72258967,145.77,145.73,0.36003016]
[1768437075345,0.72258967,145.77,145.74,0.36003016]
[1768437075844,0.72258967,145.77,145.73,0.36003016]
[1768437076348,3.88062115,145.77,145.73,0.36003016]
[1768437076836,0.72258967,145.76,145.72,0.36003016]
[1768437077540,3.88062115,145.76,145.72,0.36003016]
[1768437079649,0.72258967,145.76,145.72,0.36003016]
[1768437083139,0.68992588,145.78,145.73,0.36003016]
[1768437083436,0.68992588,145.8,145.75,0.36003016]
[1768437084366,0.68992588,145.8,145.75,3.51806164]
[1768437084563,0.68992588,145.8,145.76,0.36003016]
[1768437085168,0.68992588,145.8,145.75,3.51806164]
[1768437088342,0.68992588,145.8,145.75,0.36003016]
[1768437089165,0.68992588,145.78,145.74,0.36003016]
[1768437090967,0.68992588,145.78,145.73,3.51806164]
[1768437091349,0.68992588,145.78,145.74,0.36003016]
[1768437093868,0.68992588,145.76,145.71,3.51806164]
[1768437094049,0.68992588,145.76,145.72,3.15803148]
[1768437094254,0.68992588,145.76,145.72,3.51806164]
[1768437099066,0.68992588,145.76,145.73,0.36003016]
[1768437099377,0.68992588,145.76,145.72,3.51806164]
[1768437101674,0.68992588,145.76,145.71,3.51806164]
[1768437103263,3.84795736,145.76,145.71,3.51806164]
[1768437103576,0.68992588,145.75,145.71,3.51806164]
[1768437103983,0.68992588,145.75,145.72,0.36003016]
[1768437125027,0.68992588,145.75,145.71,0.36003016]
[1768437125314,0.68992588,145.75,145.68,9.382361]
[1768437125315,0.66580828,145.74,145.7,0.36003016]
[1768437125812,0.66580828,145.74,145.71,0.36003016]
[1768437128695,0.66580828,145.74,145.71,3.51806164]
[1768437129211,0.66580828,145.74,145.71,0.36003016]
[1768437129414,0.66580828,145.74,145.71,3.51806164]
[1768437129608,0.66580828,145.74,145.71,0.36003016]
[1768437130638,0.66580828,145.76,145.72,3.51806164]
[1768437130948,0.66580828,145.77,145.74,3.51806164]
[1768437131331,0.66580828,145.74,145.69,5.70411872]
[1768437131516,0.66580828,145.77,145.67,0.36003016]
[1768437131517,0.66580828,145.71,145.67,0.36003016]
[1768437131716,0.66580828,145.71,145.61,0.05471777]
[1768437131717,0.66580828,145.7,145.65,0.36003016]
[1768437132021,0.66580828,145.69,145.65,0.36003016]
[1768437132225,0.66580828,145.69,145.63,3.15803148]
[1768437132226,0.66580828,145.69,145.64,0.36003016]
[1768437132422,0.66580828,145.68,145.64,0.36003016]
[1768437135342,0.66580828,145.68,145.64,2.38429102]
[1768437135649,0.66580828,145.67,145.63,2.38429102]
[1768437136040,0.66580828,145.67,145.62,2.38429102]
[1768437136343,0.66580828,145.67,145.62,2.02426086]
[1768437136516,0.66580828,145.66,145.61,2.43900879]
[1768437137918,0.66580828,145.66,145.62,2.38429102]
[1768437138944,0.66580828,145.64,145.6,0.1]
[1768437139135,0.66580828,145.62,145.58,0.1]
[1768437139446,0.66580828,145.62,145.58,2.12426086]
[1768437139942,0.66580828,145.64,145.61,0.51474793]
[1768437140126,0.66580828,145.66,145.63,2.02426086]
[1768437142119,0.66580828,145.66,145.62,0.51474793]
[1768437144426,0.66155787,145.64,145.59,2.02426086]
[1768437144629,46.81533174,145.71,145.58,0.61474793]
[1768437144630,0.66155787,145.62,145.58,0.61474793]
[1768437144856,2.02426086,145.65,145.59,0.54474792]
[1768437145424,2.02426086,145.65,145.6,0.54474792]
[1768437145639,2.02426086,145.64,145.6,0.54474792]
[1768437146751,2.68581873,145.64,145.6,0.54474792]
[1768437146933,0.66155787,145.63,145.59,0.54474792]
[1768437147143,0.66155787,145.62,145.58,0.64474792]
[1768437148739,0.66155787,145.65,145.58,0.64474792]
[1768437148945,2.68581873,145.65,145.59,0.54474792]
[1768437149438,0.66155787,145.64,145.59,0.54474792]
[1768437149635,2.68581873,145.64,145.59,0.54474792]
[1768437150454,0.66155787,145.64,145.59,0.54474792]
[1768437151478,0.66155787,145.59,145.57,0.1]
[1768437151624,0.66155787,145.62,145.57,0.74474792]
[1768437152144,0.66155787,145.63,145.58,0.64474792]
[1768437153050,0.66155787,145.63,145.59,0.64474792]
[1768437154837,0.66155787,145.65,145.6,2.66900878]
[1768437155828,0.66155787,145.65,145.61,0.64474792]
[1768437157361,6.86445326,145.68,145.64,2.66900878]
[1768437157362,0.66155787,145.68,145.64,2.66900878]
[1768437158035,0.66155787,145.68,145.64,0.64474792]
[1768437158573,0.66155787,145.68,145.63,2.66900878]
[1768437158746,0.66155787,145.68,145.64,2.02426086]
[1768437159841,0.66155787,145.68,145.64,2.66900878]
[1768437160242,0.66155787,145.68,145.64,0.64474792]
[1768437160458,8.88750259,145.71,145.65,0.64474792]
[1768437160652,0.66155787,145.7,145.65,0.64474792]
[1768437160965,0.66155787,145.7,145.64,2.66900878]
[1768437161652,2.68581873,145.7,145.64,0.64474792]
[1768437161858,0.66155787,145.69,145.64,0.64474792]
[1768437163146,0.66155787,145.67,145.62,0.64474792]
[1768437164758,2.02426086,145.68,145.57,80.9693703]
[1768437164759,0.66155787,145.64,145.59,2.66900878]
[1768437164952,0.66155787,145.64,145.59,0.64474792]
[1768437166263,0.66155787,145.64,145.59,2.66900878]
[1768437166958,0.66155787,145.62,145.57,0.74474792]
[1768437167167,0.66155787,145.62,145.57,0.1]
[1768437168550,0.66155787,145.62,145.57,0.74474792]
[1768437168762,0.66155787,145.62,145.57,2.76900878]
[1768437169268,0.66155787,145.62,145.57,0.74474792]
[1768437169452,0.66155787,145.62,145.58,2.02426086]
[1768437170065,0.66155787,145.62,145.57,0.74474792]
[1768437170274,0.66155787,145.62,145.57,0.1]
[1768437170569,0.7041041,145.61,145.57,0.1]
[1768437172651,0.7041041,145.6,145.56,15.51445492]
[1768437172855,0.7041041,145.58,145.56,15.51445492]
[1768437173069,2.02426086,145.61,145.56,15.51445492]
[1768437173361,8.89162667,145.62,145.56,15.51445492]
[1768437173541,6.86736581,145.62,145.56,15.51445492]
[1768437173744,8.89112738,145.63,145.56,18.21480655]
[1768437174171,8.89112738,145.63,145.56,16.19054569]
[1768437174350,2.02426086,145.62,145.56,18.21480655]
[1768437175164,0.7041041,145.61,145.56,18.21480655]
[1768437175564,0.7041041,145.61,145.56,15.51445492]
[1768437175757,0.7041041,145.61,145.56,18.21480655]
[1768437180280,0.7041041,145.61,145.57,0.67609077]
[1768437180457,0.7041041,145.61,145.57,2.70035163]
[1768437180654,0.7041041,145.61,145.58,0.67609077]
[1768437180853,0.7041041,145.61,145.58,2.70035163]
[1768437181670,12.52,145.64,145.6,0.67609077]
[1768437181671,13.2241041,145.64,145.6,0.67609077]
[1768437181968,0.7041041,145.63,145.6,2.70035163]
[1768437182150,0.7041041,145.63,145.6,2.02426086]
[1768437182347,0.7041041,145.63,145.59,0.67609077]
[1768437182546,0.7041041,145.63,145.57,0.67609077]
[1768437182748,0.7041041,145.63,145.57,2.70035163]
[1768437182957,0.7041041,145.62,145.56,18.21480655]
[1768437183373,0.7041041,145.62,145.57,2.02426086]
[1768437183549,0.7041041,145.62,145.57,2.70035163]
[1768437184669,0.7041041,145.62,145.57,2.02426086]
[1768437185467,0.7041041,145.61,145.56,16.19054569]
[1768437185670,0.7041041,145.61,145.56,18.21480655]
[1768437185871,0.7041041,145.61,145.57,2.02426086]
[1768437186477,0.7041041,145.61,145.57,2.70035163]
[1768437187272,0.7041041,145.61,145.56,16.19054569]
[1768437187469,0.7041041,145.61,145.56,18.21480655]
[1768437188976,0.7041041,145.61,145.57,2.70035163]